Cogmind - Beta 16 --- EXPLORER MODE // 2026.01.09 @ 17:02:28 Player: K.K.Y. Result: Smashed by cave-in Performance ------------- Evolutions (0) 0 Regions Visited (3) 600 Robots Destroyed (40) 200 Value Destroyed (929) 929 Prototype IDs (12) 240 Alien Tech Used (0) 0 Bonus (-486) -486 TOTAL SCORE: 1483 Bonus ------- Friendly Fire -486 Cogmind --------- Core Integrity 0/250 Matter 300/300 Energy 339/340 System Corruption 4% Temperature Cool (0) Movement Walking (280) Ox2 Location -10/Subcaves Parts ------- > --- POWER (1+1) ------ Improved Deuterium Engine (+) Light Angular Momentum Engine > --- PROPULSION (2) --- Makeshift Leg > --- UTILITY (3) ------ Large Storage Unit Improved Terrain Scanner > --- WEAPON (2) ------- Powered Cannon > --- INVENTORY (15) --- Improved Heat Sink Improved Heat Sink Improved Heat Sink Light Humpback Structural Scanner Recoil Stabilizer Reactive Plating Insulated Plating Heavy Battle Rifle Improved Datajack Multitool Makeshift Hammer Peak State ------------ > --- POWER ------------ Improved Deuterium Engine Light Angular Momentum Engine > --- PROPULSION ------- Makeshift Leg > --- UTILITY ---------- Large Storage Unit Improved Terrain Scanner > --- WEAPON ----------- Powered Cannon > --- INVENTORY -------- Improved Heat Sink Improved Heat Sink Improved Heat Sink Light Humpback Structural Scanner Recoil Stabilizer Reactive Plating Insulated Plating Heavy Battle Rifle Improved Datajack Multitool Makeshift Hammer [Rating: 34] Favorites ----------- Power Light Angular Momentum Engine Engine Light Angular Momentum Engine Power Core Nuclear Core Propulsion Light Treads Treads Light Treads Leg Makeshift Leg Utility Sensor Array Device Sensor Array Storage Large Storage Unit Weapon Slug Cannon Energy Gun Beamcaster Energy Cannon Powered Cannon Ballistic Gun Assault Rifle Ballistic Cannon Slug Cannon Build | -11 -10 -10 -10 ------- Run | Yrd Mat Min Sub Slots Evolved 1 | . 1 . . Power . | . . . . Propulsion . | . . . . Utility 1 | . 1 . . Weapon . | . . . . Parts Attached 26 | 7 4 5 10 Power 6 | 1 1 2 2 Engine 4 | 1 1 . 2 Core 2 | . . 2 . Reactor . | . . . . Propulsion 6 | 2 1 1 2 Treads 5 | 2 1 1 1 Leg 1 | . . . 1 Wheel . | . . . . Hover . | . . . . Flight . | . . . . Utility 5 | 2 2 . 1 Device 3 | 1 1 . 1 Storage 2 | 1 1 . . Processor . | . . . . Hackware . | . . . . Protection . | . . . . Artifact . | . . . . Weapon 9 | 2 . 2 5 Energy Gun 4 | 1 . 2 1 Energy Cannon 1 | . . . 1 Ballistic Gun 2 | 1 . . 1 Ballistic Cannon 2 | . . . 2 Launcher . | . . . . Special Weapon . | . . . . Impact Weapon . | . . . . Slashing Weapon . | . . . . Piercing Weapon . | . . . . Special Melee Weapon . | . . . . Unidentified Prototypes . | . . . . Parts Lost 8 | . . 1 7 Power 1 | . . . 1 Propulsion 3 | . . 1 2 Utility 1 | . . . 1 Weapon 3 | . . . 3 Highest Loss Streak 3 | . . 1 3 To Critical Strikes . | . . . . Average Backups 12 | . 7 14 13 Power 1 | . 1 2 1 Propulsion . | . . 1 . Utility 6 | . 2 4 7 Weapon 3 | . 2 5 2 Tool/Special . | . . . . Unused Backups 15 | . . 3 12 Power . | . . . . Propulsion . | . . . . Utility 7 | . . . 7 Weapon 6 | . . 3 3 Tool/Special 2 | . . . 2 Average Slot Usage (%) 86 | . 86 91 85 Engine 7 | . 6 . 9 Core 2 | . . 8 1 Treads 9 | . 24 20 5 Leg 6 | . . . 9 Device 23 | . 17 25 23 Storage 11 | . 12 12 11 Energy Gun 7 | . 12 22 3 Ballistic Gun 1 | . 12 2 . Ballistic Cannon 13 | . . . 18 Peak Build Rating 34 | 7 9 19 34 Average Rating 20 | 5 7 15 24 On Entrance 8 | . 7 9 19 Avg Prop Armor Cover (%) 10 | . . . 10 Naked Turns . | . . . . Heaviest Build 49 | 17 25 37 49 Greatest Support 40 | 40 40 40 40 Greatest Overweight (x) 4 | . 4 1 2 Average Overweight (x) . | . . . 1 Largest Inventory Capacity 15 | 10 15 15 15 Average Capacity 14 | 9 10 15 15 Most Carried 15 | 5 13 15 15 Average Carried 13 | 1 7 14 14 Final Capacity 15 | 10 15 15 15 Final Carried 15 | 2 13 15 13 Class Distribution -------------------- 100% | Hacker-Mutant Dominant Class ---------------- Hacker-Mutant | -10/Materials Hacker-Mutant | -10/Mines Hacker-Mutant | -10/Subcaves Resources | -11 -10 -10 -10 ----------- Run | Yrd Mat Min Sub Matter Collected 1367 | 195 201 73 898 Remotely . | . . . . Salvage Created 1502 | 139 271 499 593 Parts 77 | 14 21 13 29 Haulers Intercepted 1 | . 1 . . Recyclers Shooed . | . . . . Parts Field Recycled . | . . . . Retrieved Matter . | . . . . Parts Self-Destructed . | . . . . Prevented . | . . . . Parts Restored . | . . . . Kills | -11 -10 -10 -10 ------- Run | Yrd Mat Min Sub Combat Hostiles Destroyed 21 | . 3 3 15 Guns 13 | . 3 3 7 Cannons 8 | . . . 8 Classes Destroyed 10 | 2 3 . 5 Builder 4 | . 4 . . Tunneler 4 | 3 . 1 . Hauler 1 | . 1 . . Recycler 5 | 1 . 4 . Turret 2 | . . . 2 Grunt 5 | . 3 2 . Sentry 1 | . . . 1 Artisan 3 | . . . 3 Subdweller 14 | . . . 14 Zionite 2 | . . . 2 Thug 1 | . . 1 . Best Kill Streak 3 | 3 2 2 2 Combat Bots Only 2 | . 2 2 2 Max Kills in Single Turn 1 | 1 1 1 1 Gunslinging . | . . . . Exploded . | . . . . Melee . | . . . . Uniques/NPCs Destroyed 1 | . . 1 . YI-UF0 (-10/Mines) Combat | -11 -10 -10 -10 -------- Run | Yrd Mat Min Sub Hostile Shots Fired 112 | . 9 18 85 Missed 35 | . 3 3 29 Hits 77 | . 6 15 56 Projectile 77 | . 6 15 56 AOE 16 | . . 16 . Critical Strikes 1 | . . . 1 Damage Taken 1484 | . 44 357 1083 Core 259 | . 9 68 182 Absorbed by Shields . | . . . . Ignored by Resistances 653 | . 28 210 415 Core Remaining (%) 100 | 100 . . . Volleys Fired 242 | 7 21 21 193 Largest 2 | 2 2 2 2 Hottest 140 | 60 60 140 140 Shots Fired 428 | 14 42 42 330 Gun 245 | 14 42 42 147 Cannon 183 | . . . 183 Launcher . | . . . . Special . | . . . . Kinetic 171 | 7 21 4 139 Thermal 257 | 7 21 38 191 Explosive . | . . . . Electromagnetic . | . . . . Robot Hit Streak 52 | 12 26 43 52 Robot Miss Streak 4 | . 1 . 4 Penetration Max . | . . . . Secondary Targets 1 | . . 1 . Max Gunslinging Chain 1 | . . 1 . Shots Hit Robots 183 | 12 37 34 100 Core Hits 65 | 5 13 15 32 Critical Kills 1 | . . . 1 Critical Parts Destroyed 5 | . . . 5 Critical Strikes 11 | . . 1 10 Burn 2 | . . 1 1 Destroy 9 | . . . 9 Melee Attacks . | . . . . Impact . | . . . . Slashing . | . . . . Piercing . | . . . . Sneak Attacks . | . . . . Combat Hostiles . | . . . . Follow-up Attacks . | . . . . Damage Inflicted 3625 | 145 428 603 2449 Guns 2008 | 145 425 589 849 Cannons 1600 | . . . 1600 Explosions . | . . . . Melee . | . . . . Ramming 17 | . 3 14 . Kinetic 1638 | 63 206 61 1308 Thermal 1970 | 82 219 528 1141 Explosive . | . . . . Electromagnetic . | . . . . Impact . | . . . . Slashing . | . . . . Piercing . | . . . . Highest Corruption 4 | . . . 4 Average Corruption 4 | . . . 4 Corruption Purged . | . . . . Corruption Blocked . | . . . . Effects 12 | . . . 12 Message Errors 4 | . . . 4 Heat Flow Errors 4 | . . . 4 Energy Discharges 2 | . . . 2 Misfires 1 | . . . 1 Alerts 1 | . . . 1 Overload Shots . | . . . . Overflow Damage 1 | . . . 1 Projectiles 1 | . . . 1 Explosions . | . . . . Melee . | . . . . Knockbacks 10 | . . . 10 Impact . | . . . . Kinetic 9 | . . . 9 Secondary 1 | . . . 1 Self-Inflicted Damage . | . . . . Shots . | . . . . Rammed 3 | . 1 2 . Targets Rammed 4 | . 1 3 . Kicked . | . . . . Crushed 1 | . . 1 . Highest Temperature 307 | . 15 307 245 Average Temperature 57 | . 9 107 37 Received Heat Transfer 297 | . 42 6 249 Effects 2 | . . 2 . Energy Bleed 2 | . . 2 . Siege Activations . | . . . . Martial Activations . | . . . . Shielding Activations . | . . . . Robots Disrupted . | . . . . Combat Hostiles . | . . . . Robots Corrupted . | . . . . Combat Hostiles . | . . . . Parts Fried . | . . . . Impact Corruptions . | . . . . Robots Melted . | . . . . Combat Hostiles . | . . . . Parts Melted 5 | . . 3 2 Heat Transferred 3513 | 175 500 1136 1702 Parts Sabotaged . | . . . . Parts Stolen . | . . . . Parts Stripped . | . . . . Power Chain Reactions . | . . . . Alert | -11 -10 -10 -10 ------- Run | Yrd Mat Min Sub Maximum Alert Level . | . . . . Low Security (%) 100 | 100 100 100 . Level 1 . | . . . . Level 2 . | . . . . Level 3 . | . . . . Level 4 . | . . . . Level 5 . | . . . . High Security . | . . . . Max Security . | . . . . Peak Influence 50 | 5 35 50 . Initial . | . . . . Average 1 | 1 1 1 . Influence Increases 270 | 20 115 75 60 Destroy 0b10 Robot/C 160 | . 60 40 60 Destroy 0b10 Robot/NC 70 | 20 25 25 . Destroy Leader 22 | . 12 10 . Successful Hack 18 | . 18 . . Influence Decreases 270 | 20 115 75 60 Time Decay 270 | 20 115 75 60 Squads Dispatched 1 | . . 1 . Investigation 1 | . . 1 . Extermination . | . . . . Reinforcement . | . . . . Assault . | . . . . Garrison . | . . . . Intercept . | . . . . Searches Triggered . | . . . . Construction Impeded . | . . . . Haulers Reinforced . | . . . . Active Scanning Responses . | . . . . Cargo Convoy Interrupts . | . . . . Stealth | -11 -10 -10 -10 --------- Run | Yrd Mat Min Sub Distress Signals 3 | . 3 . . Communications Jammed . | . . . . Distress Signals . | . . . . Times Spotted 26 | . 6 3 17 Peak Tracking Total 3 | . 2 2 3 Tactical Retreats . | . . . . Traps | -11 -10 -10 -10 ------- Run | Yrd Mat Min Sub Traps Triggered 5 | . 2 1 2 Indirectly . | . . . . Trap Hack Attempts . | . . . . Triggered . | . . . . Disarmed . | . . . . Reprogrammed . | . . . . Reused . | . . . . Traps Extracted . | . . . . Installed . | . . . . Triggered . | . . . . Machines | -11 -10 -10 -10 ---------- Run | Yrd Mat Min Sub Machines Disabled 3 | . . . 3 Max in Single Turn 1 | . . . 1 Machines Repaired . | . . . . Machines Dismantled . | . . . . Machines Sabotaged . | . . . . Overloaded Fab Kills . | . . . . Hacking | -11 -10 -10 -10 --------- Run | Yrd Mat Min Sub Machines Accessed 9 | . 5 2 2 Terminals 5 | . 5 . . Fabricators . | . . . . Repair Stations . | . . . . Recycling Units . | . . . . Scanalyzers . | . . . . Garrison Access . | . . . . Total Hacks 19 | . 11 2 6 Successful 15 | . 7 2 6 Failed 4 | . 4 . . Catastrophic . | . . . . Database Lockouts . | . . . . Manual 7 | . 7 . . Terminals 11 | . 11 . . Fabricators . | . . . . Repair Stations . | . . . . Recycling Units . | . . . . Scanalyzers . | . . . . Garrison Access . | . . . . Terminal Hacks 10 | . 2 2 6 Record 5 | . . . 5 Robot Analysis 2 | . 2 . . Open Door 2 | . . 2 . Proto ID Catalog 1 | . . . 1 Fabricator Hacks . | . . . . Repair Station Hacks . | . . . . Recycling Unit Hacks . | . . . . Scanalyzer . | . . . . Garrison Access Hacks . | . . . . Unauthorized Hacks 5 | . 5 . . Terminals 5 | . 5 . . Botnet 5 | . 5 . . Fabricators . | . . . . Repair Stations . | . . . . Recycling Units . | . . . . Scanalyzers . | . . . . Garrison Access . | . . . . Data Cores Recovered . | . . . . Used . | . . . . Hacking Detections 4 | . 4 . . Full Trace Events 1 | . 1 . . Feedback Events . | . . . . Feedback Blocked . | . . . . Robot Schematics Acquired . | . . . . Robots Built . | . . . . Authchips . | . . . . Time . | . . . . Total Robot Build Rating . | . . . . Part Schematics Acquired . | . . . . Parts Built . | . . . . Authchips . | . . . . Time . | . . . . Total Part Build Rating . | . . . . Part Studies Acquired . | . . . . Parts Repaired . | . . . . Time . | . . . . Parts Recycled . | . . . . Recycled Matter . | . . . . Retrieved Matter . | . . . . Retrieved Components . | . . . . Parts Scanalyzed . | . . . . Part Schematics Acquired . | . . . . Parts Damaged . | . . . . Bothacking | -11 -10 -10 -10 ------------ Run | Yrd Mat Min Sub Used RIF Installer . | . . . . Robots Hacked . | . . . . Non-combat . | . . . . Combat . | . . . . Robot Hacks Applied . | . . . . Relay Couplers Released . | . . . . Fabnet Peak Effective % . | . . . . Robots Rewired . | . . . . Allies Hacked . | . . . . Hacks Repelled . | . . . . Allies | -11 -10 -10 -10 -------- Run | Yrd Mat Min Sub Total Allies . | . . . . Largest Group . | . . . . Highest-Rated Group . | . . . . Highest-Rated Ally . | . . . . Total Orders . | . . . . Ally Attacks . | . . . . Total Damage . | . . . . Kills . | . . . . Allies Corrupted . | . . . . Allies Melted . | . . . . Intel | -11 -10 -10 -10 ------- Run | Yrd Mat Min Sub Active Infowar (turns) 10091 | 91 1153 1569 7278 Sensors 9402 | 91 1153 1569 6589 Terrain 3207 | . . . 3207 Structural 6129 | . 489 1569 4071 Robot Analysis Total 2 | . 2 . . Derelict Logs Recovered 2 | . . . 2 Drone Launches . | . . . . Drone Recoveries . | . . . . Exploration | -11 -10 -10 -10 ------------- Run | Yrd Mat Min Sub Turns Passed 10117 | 117 1153 1569 7278 Spaces Moved 3439 | 52 644 757 1986 Core 21 | 16 5 . . Treads 2139 | 36 639 757 707 Legs 1279 | . . . 1279 Wheels . | . . . . Hover . | . . . . Flight . | . . . . Fastest Speed 50 | 50 160 160 160 Average Speed 211 | 126 160 179 242 Slowest Speed 280 | 160 250 240 280 Overloaded Moves . | . . . . Propulsion Burnouts . | . . . . Robots Hopped . | . . . . Potential Cave-ins 18 | . . . 18 Cave-ins Triggered 2 | . . . 2 Exploration Rate (%) 70 | 4 87 100 91 Regions Visited 3 Branch Regions 2 Pre-discovered Areas 1 | . . . 1 Known Exits Taken 3 | 1 1 1 . Unknown Exits Taken . | . . . . Scrap Searched 12 | . . . 12 Spaces Dug 74 | . . . 74 Terrain Destroyed 99 | . . . 99 Melee . | . . . . Projectile 99 | . . . 99 AOE . | . . . . Terrain Rammed . | . . . . Walls Destroyed . | . . . . Machines Disabled . | . . . . Actions | -11 -10 -10 -10 --------- Run | Yrd Mat Min Sub Total 5875 | 89 719 928 4139 Wait 2106 | 16 32 125 1933 Move 3435 | 51 643 756 1985 Hop . | . . . . Pick Up 40 | 8 15 10 7 Fast Attach 4 | 1 1 . 2 Attach 15 | 6 2 2 5 Detach 1 | . . . 1 Swap 10 | . 2 4 4 Drop 18 | . 2 7 9 Fire 242 | 7 21 21 193 Melee . | . . . . Ram . | . . . . Kick . | . . . . Crush 4 | . 1 3 . Escape Stasis . | . . . . Rewire . | . . . . Trap . | . . . . Miscellaneous . | . . . . Route ------- -11/Scrapyard -10/Materials (discovered 4 exits: *Mat x2 / *Min x2) -10/Mines (discovered 3 exits: *Mat x2 / *Sub) -10/Subcaves (discovered 3 exits: *Mat x2 / *Rec) History --------- Turn | Location | Event 7 | -11/Scrapyard | Identified exit to Materials 7 | -11/Scrapyard | Discovered exit to Materials (range 16) 118 | -11/Scrapyard | Entered Materials 118 | -10/Materials | Evolved 1 slot: Utility x1 119 | -10/Materials | Met a group of wandering Federalists 131 | -10/Materials | Identified exit to Mines 131 | -10/Materials | Discovered exit to Mines (range 11) 288 | -10/Materials | Discovered exit to Mines (range 7) 309 | -10/Materials | Build established: Hacker-Mutant 612 | -10/Materials | Identified exit to Materials 612 | -10/Materials | Discovered exit to Materials (range 3) 998 | -10/Materials | Discovered exit to Materials (range 16) 1271 | -10/Materials | Entered Mines 1289 | -10/Mines | Met a Derelict bent on vengeance 1296 | -10/Mines | Met a Derelict who couldn't figure out how to use a Trap Extractor 1359 | -10/Mines | YI-UF0 nonchalantly dropped a Grenade Launcher on the ground 1689 | -10/Mines | Destroyed YI-UF0 1788 | -10/Mines | Discovered exit to Materials (range 10) 2190 | -10/Mines | Discovered exit to Materials (range 5) 2222 | -10/Mines | Met a Derelict shopkeep closing up shop 2832 | -10/Mines | Identified exit to Subcaves 2832 | -10/Mines | Discovered exit to Subcaves (range 6) 2840 | -10/Mines | Entered Subcaves 2974 | -10/Subcaves | Shifting Twisted Machinery released Battle Cannon 3065 | -10/Subcaves | Learned Materials garrison access intel 3150 | -10/Subcaves | Disturbed a concealed Subdweller 3493 | -10/Subcaves | Shifting Twisted Machinery released Mak. Hammer 3574 | -10/Subcaves | Disturbed a concealed Subdweller 3742 | -10/Subcaves | Learned Materials terminal intel 3948 | -10/Subcaves | Visited 4L-MR0's lab 3993 | -10/Subcaves | Core integrity fell below 50% 4036 | -10/Subcaves | Found Powered Cannon 4248 | -10/Subcaves | Identified exit to Recycling 4248 | -10/Subcaves | Discovered exit to Recycling (range 16) 4485 | -10/Subcaves | Identified exit to Materials 4485 | -10/Subcaves | Discovered exit to Materials (range 6) 4563 | -10/Subcaves | Discovered exit to Materials (range 15) 4878 | -10/Subcaves | Shifting Twisted Machinery released Piercing Trap 4908 | -10/Subcaves | Shifting Twisted Machinery released Flamer 4990 | -10/Subcaves | Learned location of Zion (-7) 4990 | -10/Subcaves | Met a Zionite searching for "candidates" 6581 | -10/Subcaves | A swath of the cavern ceiling suddenly collapsed 9366 | -10/Subcaves | Ambushed by Subdweller buried in earth 9421 | -10/Subcaves | Disturbed a concealed Subdweller 9429 | -10/Subcaves | Crushed by falling debris 9456 | -10/Subcaves | Core integrity fell below 20% 9460 | -10/Subcaves | Lost 3 parts (1u2w) 9569 | -10/Subcaves | Attached Powered Cannon, gained temporary slot: Power 9619 | -10/Subcaves | Visited Clippyterm 9627 | -10/Subcaves | Learned Factory garrison access intel 9676 | -10/Subcaves | Ambushed by Subdweller buried in earth 9685 | -10/Subcaves | Ambushed by Subdweller buried in earth 10109 | -10/Subcaves | Ambushed by Subdweller buried in earth 10118 | -10/Subcaves | Crushed by falling debris 10118 | -10/Subcaves | Smashed by cave-in Last Messages --------------- (-102). 09935_ Subatomizers dissect the Sub. Machine Gun. 09973_ System corrupted: Heat flow error (+233). 10025_ System corrupted: FCS attempts to trigger Powered Cannon. 10025_ System corrupted: Powered Cannon misfires. 10044_ VL=K6/M5NY|9|%K